bitfinex/quotes_ETHUSD_20241225
["timestamp","ask_amount","ask_price","bid_price","bid_amount"]
[1735115308598,2.85994,3496.6,3495.8,1.3285]
[1735115309299,0.56602908,3496.5,3495.8,36.3285]
[1735115309808,0.56602908,3496.5,3495.8,1.3285]
[1735115310432,2.85975,3496.8,3495.8,1.3285]
[1735115311634,2.85975,3496.8,3495.9,0.7785]
[1735115312132,2.85975,3496.8,3496.0,0.55]
[1735115312446,3.67449,3497.0,3496.0,9.00998553]
[1735115314706,3.67449,3497.0,3496.1,0.7785]
[1735115315063,1.19809665,3498.0,3496.6,0.7785]
[1735115315262,1.19809665,3498.0,3497.3,0.55]
[1735115315426,1.19809665,3498.0,3497.5,1.3285]
[1735115315761,1.19809665,3498.0,3497.5,4.3285]
[1735115316114,1.19809665,3498.0,3497.6,2.85908]
[1735115316438,1.19809665,3498.0,3497.7,3.55]
[1735115317045,0.8149,3498.8,3497.7,0.55]
[1735115317211,2.85814,3498.8,3498.0,0.55]
[1735115318857,3.67284,3499.1,3498.0,0.55]
[1735115319060,0.8149,3499.4,3498.2,9.00998553]
[1735115319256,0.8149,3499.4,3498.4,0.55]
[1735115319442,0.8149,3499.4,3498.5,0.7785]
[1735115320053,0.8149,3499.4,3498.6,0.55]
[1735115320872,2.85774,3499.3,3498.6,0.55]
[1735115327285,2.85753,3499.6,3498.6,0.55]
[1735115327574,2.85739,3499.7,3498.8,0.55]
[1735115328248,2.85749,3499.6,3498.8,0.55]
[1735115330177,2.85755,3499.5,3498.8,0.55]
[1735115331189,3.42120269,3499.5,3498.8,0.55]
[1735115331482,1.12312027,3499.4,3498.1,0.827]
[1735115331833,2.85841,3498.5,3498.1,0.827]
[1735115333170,2.85841,3498.5,3498.2,0.55]
[1735115333365,2.85821,3498.7,3498.2,0.55]
[1735115333573,0.781,3499.2,3498.2,0.55]
[1735115333772,0.39808703,3499.1,3498.2,0.55]
[1735115334093,2.85803,3499.0,3498.2,0.55]
[1735115335073,2.85809,3498.9,3498.2,0.55]
[1735115335639,0.39808703,3499.1,3498.2,0.55]
[1735115335886,2.85837,3498.5,3498.2,0.55]
[1735115336040,0.781,3498.8,3497.7,0.827]
[1735115336392,2.8587,3498.1,3497.7,0.827]
[1735115337487,0.781,3498.1,3497.2,0.827]
[1735115337696,2.85893,3497.9,3497.2,0.827]
[1735115339047,2.85893,3497.9,3497.3,0.55]
[1735115339279,3.63971,3498.1,3497.3,0.55]
[1735115339482,2.85871,3498.1,3497.3,0.55]
[1735115339817,2.85804,3498.9,3497.3,0.55]
[1735115339818,2.85853,3498.3,3497.4,0.8072]
[1735115340020,2.85853,3498.3,3497.5,0.55]
[1735115341520,2.85853,3498.3,3497.7,0.55]
[1735115342603,3.144383,3498.3,3497.7,0.55]
[1735115343325,2.85853,3498.3,3497.7,0.55]
[1735115343826,2.85816,3498.8,3497.8,0.7943]
[1735115344122,2.85816,3498.8,3497.9,0.55]
[1735115344320,2.85816,3498.8,3498.0,0.55]
[1735115344619,2.85816,3498.8,3498.2,0.55]
[1735115348320,4.22350724,3499.3,3498.2,0.55]
[1735115348556,2.85821,3498.7,3498.2,0.55]
[1735115353225,2.85805,3498.9,3498.2,0.55]
[1735115354626,2.85813,3498.8,3498.4,0.55]
[1735115363339,2.85797,3499.0,3498.4,0.55]
[1735115363637,2.85797,3499.0,3498.6,0.55]
[1735115365125,2.85805,3498.9,3498.6,0.55]
[1735115368153,1.6546594,3499.2,3498.6,0.55]
[1735115368358,0.42414459,3499.1,3498.6,0.55]
[1735115368510,2.85803,3499.0,3498.6,0.55]
[1735115369458,0.42414459,3499.1,3498.6,0.55]
[1735115369660,2.85806,3498.9,3498.6,0.55]
[1735115374279,0.42414459,3499.1,3498.6,0.55]
[1735115374441,4.05594665,3499.2,3498.8,0.55]
[1735115376094,3.80246541,3499.1,3498.8,0.55]
[1735115377779,2.85788,3499.1,3498.8,0.55]
[1735115380155,1.19809665,3499.2,3498.8,0.55]
[1735115381971,5.21983793,3499.2,3498.8,0.55]
[1735115382170,6.04127004,3499.2,3498.8,0.55]
[1735115383304,3.18348004,3499.2,3498.8,0.55]
[1735115383611,1.19809665,3499.3,3498.8,0.55]
[1735115383757,1.19809665,3499.3,3499.0,4.19333]
[1735115383964,1.19809665,3499.3,3499.2,1.3354]
[1735115384879,1.19809665,3499.7,3499.2,1.3354]
[1735115386715,5.252352,3500.0,3499.2,1.3354]
[1735115386716,2.85717,3500.0,3499.3,0.98540713]
[1735115387207,2.85717,3500.0,3499.5,0.7854]
[1735115387593,2.85717,3500.0,3499.6,0.55]
[1735115388814,1.19809665,3500.3,3499.6,0.55]
[1735115389022,1.19809665,3500.3,3500.2,6.40697]
[1735115389309,1.19809665,3500.3,3500.2,7.19237]
[1735115389458,1.19809665,3500.4,3500.3,6.40689]
[1735115389659,1.19809665,3500.4,3500.3,7.19229]
[1735115391165,1.19809665,3500.4,3500.3,0.7854]
[1735115391393,2.9939775,3500.9,3500.3,0.7854]
[1735115391394,3.62826,3500.8,3500.3,2.45676663]
[1735115391598,3.219396,3500.7,3500.3,2.45676663]
[1735115392613,2.85657,3500.7,3500.0,0.7854]
[1735115393699,2.85657,3500.7,3500.1,0.55]
[1735115394446,2.85597,3501.5,3500.2,0.7854]
[1735115394655,2.85605,3501.4,3500.5,0.55]
[1735115394797,2.85609,3501.3,3500.5,0.55]
[1735115395002,3.62779,3501.3,3500.5,0.55]
[1735115399227,2.85617,3501.2,3500.5,0.55]
[1735115401217,2.8527279,3501.2,3500.5,0.55]
[1735115402285,2.85625,3501.1,3500.5,0.55]
[1735115402466,2.85625,3501.1,3500.3,0.8151]
[1735115402647,2.85607,3501.4,3500.4,0.55]
[1735115402853,0.7682,3501.5,3500.6,0.55]
[1735115403048,2.85609,3501.3,3500.6,0.55]
[1735115403951,0.7682,3501.5,3500.6,0.55]
[1735115404152,2.85616,3501.2,3500.6,0.55]
[1735115405598,0.362436,3501.2,3500.6,0.55]
[1735115405749,2.85632,3501.0,3500.2,0.8151]
[1735115405944,0.7682,3501.1,3500.1,3.0]
[1735115406150,0.5735058,3501.6,3499.8,0.8151]
[1735115406151,0.7682,3500.8,3499.8,0.8151]
[1735115406901,2.85684,3500.4,3499.8,0.8151]
[1735115407595,2.85684,3500.4,3499.9,0.55]
[1735115407800,2.85666,3500.6,3499.9,0.55]
[1735115408600,2.8565,3500.8,3500.0,0.8151]
[1735115408903,2.85634,3501.0,3500.2,0.8151]
[1735115409131,0.7682,3501.3,3500.3,0.55]
[1735115409336,2.85618,3501.2,3500.5,0.55]
[1735115410485,2.85618,3501.2,3500.7,0.55]
[1735115410687,0.57947885,3501.5,3500.8,0.8151]
[1735115411036,2.55513921,3502.1,3500.8,0.8151]
[1735115411037,0.7682,3502.1,3500.9,0.55]
[1735115411218,2.85567,3501.9,3501.1,0.55]
[1735115411390,2.85541,3502.2,3501.1,0.55]
[1735115411391,2.85569,3501.8,3501.1,0.55]
[1735115411732,3.62389,3501.8,3501.1,0.55]
[1735115411930,2.85569,3501.8,3501.1,0.55]
[1735115412280,2.85579,3501.7,3501.1,0.55]
[1735115413313,2.85601,3501.4,3501.1,0.55]
[1735115414539,2.85583,3501.7,3501.1,0.55]
[1735115415435,2.85561,3501.9,3501.1,0.55]
[1735115415640,1.35442828,3502.1,3501.1,0.55]
[1735115415933,2.85568,3501.8,3501.1,0.55]
[1735115416440,2.85576,3501.7,3501.1,0.55]
[1735115418269,2.85583,3501.6,3501.1,0.55]
[1735115418764,3.27764383,3501.9,3501.1,0.55]
[1735115418965,0.42198383,3501.9,3501.3,0.55]
[1735115419119,2.85569,3501.8,3501.3,0.55]
[1735115421469,0.58622828,3502.1,3501.3,0.55]
[1735115421621,2.86553,3502.0,3501.3,0.55]
[1735115422170,2.85559,3501.9,3501.3,0.55]
[1735115431279,0.01,3502.0,3501.5,0.55]
[1735115431431,0.01,3502.0,3501.7,0.55]
[1735115434579,2.86558,3502.0,3501.7,0.55]
[1735115434881,2.85559,3501.9,3501.7,0.55]
[1735115435189,2.85567,3501.8,3501.7,0.55]
[1735115435886,2.86552,3502.0,3501.7,0.55]
[1735115436877,2.85566,3501.9,3501.7,0.55]
[1735115438378,0.01,3502.0,3501.5,0.55]
[1735115438684,0.01,3502.0,3500.9,1.18359103]
[1735115438685,0.8039,3501.9,3500.9,1.18359103]
[1735115438987,2.85626,3501.1,3500.9,1.18359103]
[1735115439185,2.85632,3501.0,3500.9,1.18359103]
[1735115439382,3.66022,3501.0,3500.9,1.18359103]
[1735115440252,2.8564,3500.9,3500.3,0.98253102]
[1735115440471,2.85648,3500.8,3500.3,0.98253102]
[1735115440671,2.85679,3500.5,3500.3,0.98253102]
[1735115441800,2.85679,3500.5,3500.0,0.55]
[1735115442785,2.85685,3500.4,3500.0,0.55]
[1735115443099,2.8569,3500.3,3499.9,35.7827]
[1735115444590,2.8569,3500.3,3500.0,0.55]
[1735115446489,0.771,3500.7,3499.7,0.55]
[1735115446747,2.85665,3500.6,3499.7,0.55]
[1735115446903,3.62762,3500.7,3499.7,0.55]
[1735115447088,0.362762,3500.6,3499.7,0.55]
[1735115447608,0.771,3500.7,3499.7,0.55]
[1735115447911,0.771,3500.7,3500.0,0.55]
[1735115448072,2.85667,3500.6,3500.0,0.55]
[1735115450641,0.771,3500.7,3500.0,0.55]
[1735115450941,2.85676,3500.5,3500.0,0.55]
[1735115455136,2.85639,3501.0,3500.2,0.55]
[1735115455295,2.85644,3500.9,3500.2,0.55]
[1735115455495,1.96229281,3501.3,3500.4,0.55]
[1735115456710,2.85634,3501.0,3500.4,0.55]
[1735115457602,2.85634,3501.0,3500.6,0.55]
[1735115457909,2.85594,3501.5,3500.8,0.55]
[1735115459339,2.34452781,3502.0,3501.0,0.55]
[1735115459539,5.20007781,3502.0,3501.2,0.55]
[1735115459708,4.05684281,3502.0,3501.4,0.55]
[1735115460136,1.20129281,3502.0,3501.4,0.55]
[1735115460437,0.7675,3501.8,3501.2,0.55]
[1735115460591,0.7675,3501.8,3501.1,0.55]
[1735115460798,2.85591,3501.6,3501.1,0.55]
[1735115462028,2.85594,3501.5,3501.1,0.55]
[1735115462722,2.85571,3501.8,3501.1,0.55]
[1735115462924,2.85571,3501.8,3501.2,0.8206]
[1735115463248,0.7675,3501.7,3501.3,0.55]
[1735115463439,0.7675,3501.7,3501.1,0.55]
[1735115463736,2.85576,3501.7,3501.1,0.55]
[1735115464544,2.86558,3502.0,3500.9,0.8206]
[1735115464739,2.86558,3502.0,3501.2,0.55]
[1735115465638,2.86558,3502.0,3501.4,0.55]
[1735115466791,0.01,3502.0,3501.4,0.55]
[1735115467584,2.86554,3502.0,3501.4,0.55]
[1735115470857,0.01,3502.0,3501.4,0.55]
[1735115471205,2.85561,3501.9,3501.4,0.55]
[1735115472672,0.01,3502.0,3501.7,0.8206]
[1735115472861,0.01,3502.0,3501.8,0.55]
[1735115487034,3.66189,3501.9,3501.8,0.55]
[1735115487354,2.85632,3501.0,3500.7,1.18359103]
[1735115487507,2.85645,3500.9,3500.7,1.18359103]
[1735115487702,2.85648,3500.8,3500.7,1.18359103]
[1735115488713,2.85648,3500.8,3500.2,0.7789]
[1735115489026,2.85648,3500.8,3500.2,3.7789]
[1735115489842,0.8063,3501.2,3500.2,3.7789]
[1735115489991,2.85674,3500.5,3500.2,3.7789]
[1735115490199,2.85674,3500.5,3500.2,0.7789]
[1735115491531,2.85658,3500.7,3500.2,0.7789]
[1735115493263,0.7847,3500.6,3499.8,3.8139]
[1735115493404,2.85673,3500.5,3499.9,35.0]
[1735115493598,0.7847,3500.6,3499.9,35.0]
[1735115493798,3.64137,3500.6,3499.9,35.0]
[1735115495249,0.7847,3500.6,3499.9,35.0]
[1735115495849,2.85687,3500.4,3499.9,35.0]
[1735115496358,0.7847,3500.3,3499.3,8.45998553]
[1735115496517,3.64169,3500.2,3499.1,1.18359103]
[1735115496720,2.85739,3499.7,3499.0,10.45747656]
[1735115497635,2.85724,3499.9,3499.0,10.45747656]
[1735115498702,2.85724,3499.9,3499.0,9.27388553]
[1735115499004,2.85731,3499.8,3499.0,9.27388553]
[1735115500386,2.85731,3499.8,3499.0,44.27388553]
[1735115501922,2.85731,3499.8,3499.0,35.8139]
[1735115503583,0.7847,3500.2,3499.0,0.8139]
[1735115503760,2.85742,3499.7,3499.0,0.8139]
[1735115504078,2.85746,3499.7,3499.0,0.8139]
[1735115504975,2.85747,3499.6,3499.0,0.8139]
[1735115505169,2.85706,3500.1,3499.0,0.8139]
[1735115505379,2.85755,3499.5,3499.0,0.8139]
[1735115506181,0.7885,3499.6,3499.0,0.8139]
[1735115506477,2.85801,3499.0,3498.7,3.15866759]
[1735115506874,0.7885,3499.6,3498.7,3.15866759]
[1735115507128,2.85781,3499.2,3498.7,3.15866759]
[1735115507269,2.85764,3499.4,3498.7,3.15866759]
[1735115507469,2.85764,3499.4,3498.8,0.02857836]
[1735115507678,2.85764,3499.4,3498.7,3.15866759]
[1735115508315,2.85772,3499.3,3498.7,3.15866759]
[1735115508481,0.7885,3499.2,3498.7,3.15866759]
[1735115509093,2.85789,3499.1,3498.7,3.15866759]
[1735115510119,0.7885,3499.2,3498.7,3.15866759]
[1735115512519,2.85779,3499.2,3498.7,3.15866759]
[1735115513822,2.85784,3499.2,3498.7,3.15866759]
[1735115514226,0.364634,3499.2,3498.7,3.15866759]
[1735115514415,2.85797,3499.0,3498.7,3.15866759]
[1735115514613,3.64612,3499.5,3498.7,3.15866759]
[1735115514816,2.8578,3499.2,3498.7,3.15866759]
[1735115516833,3.64613,3499.5,3498.7,3.15866759]
[1735115517035,2.85763,3499.5,3498.7,3.15866759]
[1735115517985,2.85763,3499.5,3498.8,3.0]
[1735115519334,0.57397758,3499.6,3498.8,3.0]
[1735115519545,2.85774,3499.3,3498.7,3.15866759]
[1735115520335,0.57397758,3499.6,3498.7,3.15866759]
[1735115520487,3.63482,3498.8,3498.7,2.37166759]
[1735115520690,2.8586,3498.3,3497.7,0.826]
[1735115520929,2.85828,3498.6,3497.7,0.826]
[1735115521085,2.85872,3498.1,3497.7,0.826]
[1735115521988,2.85855,3498.3,3497.7,0.826]
[1735115522192,2.85863,3498.2,3497.7,0.826]
[1735115522394,2.85837,3498.5,3497.7,0.826]
[1735115522730,2.85869,3498.1,3497.7,0.826]
[1735115523290,0.363507,3498.4,3497.7,0.826]
[1735115523491,0.7767,3498.7,3497.7,0.826]
[1735115523689,2.85844,3498.5,3497.7,0.826]
[1735115524242,3.63491,3498.7,3497.7,0.826]
[1735115524539,2.8583,3498.6,3497.7,0.826]
[1735115524720,2.8583,3498.6,3497.7,0.85458677]
[1735115525244,2.85777,3499.3,3498.1,0.826]
[1735115525391,0.7767,3499.8,3498.4,0.826]
[1735115525742,0.42181699,3500.0,3498.9,0.826]
[1735115525964,2.85731,3499.8,3498.9,0.826]
[1735115526169,0.7767,3500.1,3498.9,0.826]
[1735115526374,2.85733,3499.8,3498.9,0.826]
[1735115527411,0.562961,3500.1,3499.0,0.0285764]
[1735115527674,2.85667,3500.6,3499.5,2.85751]
[1735115527869,2.85681,3500.5,3499.7,0.826]
[1735115528867,2.85658,3500.7,3499.7,0.826]
[1735115529171,0.7767,3500.8,3499.7,3.85457071]
[1735115529172,2.85669,3500.6,3499.7,3.85457071]
[1735115529330,2.85669,3500.6,3499.7,0.826]
[1735115529531,2.85648,3500.9,3499.7,0.826]
[1735115529750,0.70641665,3500.8,3499.8,0.826]
[1735115529967,0.70641665,3500.8,3499.8,2.85725]
[1735115530264,2.85648,3500.9,3499.9,0.826]
[1735115532019,2.85648,3500.9,3499.9,3.826]
[1735115533134,2.85648,3500.9,3500.0,0.8213]
[1735115534017,2.85649,3500.8,3500.0,0.8213]
[1735115534569,2.85649,3500.8,3500.0,0.7913]
[1735115537119,0.285649,3500.8,3500.0,0.7913]
[1735115537471,2.85713,3500.1,3499.5,3.7606]
[1735115537670,2.85713,3500.1,3499.5,0.7606]
[1735115539340,2.8569,3500.3,3499.5,0.7606]
[1735115540936,2.85674,3500.5,3499.5,0.7606]
[1735115541189,2.85682,3500.4,3499.5,0.7606]
[1735115541418,3.218812,3500.4,3499.5,0.7606]
[1735115541622,3.218812,3500.4,3499.6,0.0285727]
[1735115541774,2.85665,3500.7,3499.7,0.7606]
[1735115542815,2.85665,3500.7,3499.7,3.61798]
[1735115543273,2.85665,3500.7,3499.8,0.7606]
[1735115543474,2.8564,3501.0,3500.0,2.85713]
[1735115543699,2.8564,3501.0,3500.2,0.7606]
[1735115544425,4.04730281,3501.4,3500.3,0.7606]
[1735115544604,2.85257292,3501.4,3500.4,0.7606]
[1735115544835,3.4263244,3501.4,3500.4,0.7606]
[1735115546069,2.85257292,3501.4,3500.4,0.7606]
[1735115547761,0.7631,3501.6,3500.4,0.7606]
[1735115547911,2.85616,3501.3,3500.4,0.7606]
[1735115549652,2.85616,3501.3,3500.5,0.55]
[1735115551262,2.85616,3501.3,3500.6,0.8316]
[1735115551433,2.85616,3501.3,3500.7,0.55]
[1735115552432,2.85616,3501.2,3500.7,0.55]
[1735115555070,0.361891,3501.5,3500.7,0.55]
[1735115555422,2.85615,3501.3,3500.7,0.55]
[1735115555619,2.85634,3501.0,3500.7,0.55]
[1735115557332,2.85648,3500.9,3500.4,0.55]
[1735115559667,2.85623,3501.2,3500.4,0.55]
[1735115559902,2.85631,3501.1,3500.4,0.55]
[1735115561028,0.40660901,3501.1,3500.4,0.55]
[1735115561325,2.85677,3500.5,3499.5,0.8316]
[1735115561524,2.85716,3500.0,3499.5,0.8316]
[1735115561760,0.8117,3500.7,3499.5,0.8316]
[1735115561761,2.85678,3500.5,3499.5,0.8316]
[1735115561947,2.85695,3500.3,3499.5,0.8316]
[1735115562148,2.85698,3500.2,3499.5,0.8316]
[1735115562930,2.85698,3500.2,3499.6,0.55]
[1735115563361,2.85707,3500.1,3499.6,0.55]
[1735115563571,0.366848,3500.4,3499.5,3.8316]
[1735115563877,2.85721,3500.0,3499.5,3.8316]
[1735115564425,0.7882,3500.2,3499.5,3.8316]
[1735115564426,3.64523,3500.2,3499.5,3.8316]
[1735115564625,2.85703,3500.2,3499.5,3.8316]
[1735115564822,3.645,3500.5,3499.6,0.55]
[1735115565027,2.8568,3500.5,3499.6,0.55]
[1735115565238,2.8568,3500.5,3499.7,0.8155]
[1735115565483,2.8568,3500.5,3499.8,0.55]
[1735115566921,0.7882,3501.0,3499.9,0.8155]
[1735115567128,2.85657,3500.8,3500.1,0.8155]
[1735115567426,2.85635,3501.0,3500.2,0.55]
[1735115567861,3.42788459,3501.2,3500.4,0.55]
[1735115568584,2.85617,3501.2,3500.5,0.02856516]
[1735115568877,2.85601,3501.4,3500.7,0.55]
[1735115569926,0.7882,3501.9,3500.8,0.8155]
[1735115570126,0.7882,3501.9,3500.9,0.55]
[1735115570331,2.85578,3501.7,3500.9,0.55]
[1735115571872,0.01,3502.0,3501.0,0.8155]
[1735115572074,2.85568,3501.8,3501.1,0.55]
[1735115572923,2.86553,3502.0,3501.2,0.8155]
[1735115573246,3.42677518,3501.9,3501.3,0.55]
[1735115574370,2.85575,3501.8,3501.3,0.55]
[1735115581459,0.01,3502.0,3501.4,0.7898]
[1735115581659,0.01,3502.0,3501.5,0.55]
[1735115583128,2.86552,3502.0,3501.5,0.55]
[1735115584423,0.01,3502.0,3501.5,0.55]
[1735115584705,0.01,3502.0,3501.9,0.55]
[1735115585017,0.01,3502.0,3501.9,9.79978553]
[1735115585177,0.01,3502.0,3501.9,12.79978553]
[1735115586334,0.01,3502.0,3501.9,15.65537553]
[1735115586512,0.01,3502.0,3501.9,8.45998553]
[1735115588381,2.86551,3502.0,3501.9,8.45998553]
[1735115590104,2.86551,3502.0,3501.9,8.44998553]
[1735115592148,2.86551,3502.0,3501.7,0.55]
[1735115592713,0.01,3502.0,3501.7,0.55]
[1735115595161,0.01,3502.0,3501.7,3.55]
[1735115595296,0.01,3502.0,3501.9,0.55]
[1735115595496,0.01,3502.0,3501.9,0.57855242]
[1735115595750,0.01,3502.0,3501.9,0.55]
[1735115597981,0.01,3502.0,3501.9,11.99998553]
[1735115612896,0.01,3502.0,3501.9,46.99998553]
[1735115616188,0.01,3502.0,3501.9,11.44998553]
[1735115616412,0.01,3502.0,3501.9,13.90175973]
[1735115617358,0.01,3502.0,3501.9,14.65865973]
[1735115617667,0.01,3502.0,3501.9,12.75688553]
[1735115618459,0.01,3502.4,3502.0,3.55]
[1735115619260,0.01,3502.4,3502.0,0.55]
[1735115622064,0.01,3502.4,3502.0,3.55]
[1735115623047,0.01,3502.4,3502.2,1.3393]
[1735115623353,0.01,3502.4,3502.3,7.22310909]
[1735115623579,0.01,3502.4,3502.3,15.64454553]
[1735115624150,0.01,3502.4,3502.3,20.46443076]
[1735115624405,2.85463,3503.1,3502.5,3.55]
[1735115624761,0.7874,3503.2,3502.5,3.55]
[1735115624762,2.8547,3503.0,3502.5,3.55]
[1735115624963,0.7874,3502.5,3502.3,4.81988523]
[1735115625198,2.85518,3502.4,3502.3,4.41131699]
[1735115625505,2.84344667,3502.4,3502.3,4.41131699]
[1735115626288,2.84344667,3502.4,3501.8,2.1666545]
[1735115626999,2.84344667,3502.4,3501.8,5.1666545]
[1735115627606,2.84344667,3502.4,3501.9,3.55]
[1735115628105,0.7874,3502.5,3501.9,3.55]
[1735115628674,0.7874,3502.5,3502.0,0.98029266]
[1735115629174,0.7874,3502.5,3502.1,0.55]
[1735115630891,2.85504,3502.6,3502.1,0.55]
[1735115631657,2.85504,3502.6,3502.1,2.0205866]
[1735115631913,2.85516,3502.5,3502.1,2.0205866]
[1735115632458,2.85516,3502.5,3502.1,0.55]
[1735115632658,2.86516,3502.5,3502.0,0.55]
[1735115632908,0.01,3502.5,3502.1,0.02855215]
[1735115633069,0.01,3502.5,3502.0,0.55]
[1735115633916,0.01,3502.5,3502.0,1.53056884]
[1735115634092,0.8008,3502.4,3502.0,1.53056884]
[1735115634799,0.01,3502.5,3502.0,1.53056884]
[1735115636314,0.01,3502.5,3502.2,0.55]
[1735115636904,0.01,3502.5,3502.4,0.55]
[1735115638109,0.01,3502.5,3502.4,6.00128885]
[1735115641990,0.01,3502.5,3502.4,5.45128885]
[1735115642675,0.01,3502.5,3502.4,6.20228885]
[1735115643515,0.01,3502.5,3502.4,6.75228885]
[1735115644927,0.01,3502.5,3502.4,7.93865069]
[1735115646319,0.01,3502.5,3502.4,3.63765069]
[1735115646856,0.01,3502.5,3502.4,4.38865069]
[1735115647267,0.01,3502.5,3502.4,3.20228885]
[1735115647926,0.01,3502.5,3502.4,3.75228885]
[1735115648259,0.01,3502.5,3502.4,3.00128885]
[1735115648760,0.01,3502.6,3502.5,0.55]
[1735115649910,0.01,3502.6,3502.4,3.55]
[1735115650607,0.01,3502.6,3502.3,0.55]
[1735115651332,0.01,3502.6,3502.5,0.98114115]
[1735115651674,0.01,3502.6,3502.5,1.53114115]
[1735115653770,0.01,3502.6,3502.5,13.7842754]
[1735115653973,0.01,3502.6,3502.5,16.61082668]
[1735115655645,0.01,3502.6,3502.5,22.41548009]
[1735115655974,3.61363,3503.6,3502.6,11.99998553]
[1735115656656,3.61363,3503.6,3502.8,0.55]
[1735115657827,0.7594,3503.6,3502.9,9.43112668]
[1735115658046,4.18441654,3503.8,3503.0,3.55]
[1735115658951,2.85412,3503.7,3503.0,3.55]
[1735115659161,2.8543,3503.5,3503.0,3.55]
[1735115659938,2.85445,3503.3,3503.0,3.0]
[1735115660142,0.7594,3503.2,3503.0,3.0]
[1735115660338,3.61366,3503.6,3503.0,3.0]
[1735115660576,3.61366,3503.6,3503.1,0.7746]
[1735115660893,0.7594,3503.6,3503.1,0.7746]
[1735115661190,0.57095654,3503.8,3503.2,0.55]
[1735115663289,2.85413,3503.7,3503.2,0.55]
[1735115664592,0.57095654,3503.8,3503.2,0.55]
[1735115664792,3.61338,3503.9,3503.2,0.55]
[1735115665508,2.85445,3503.3,3503.0,3.0]
[1735115666659,0.7594,3503.9,3503.0,3.0]
[1735115667064,0.7594,3503.9,3503.1,0.55]
[1735115667065,2.85409,3503.8,3503.1,0.55]
[1735115667715,2.85409,3503.8,3503.2,0.7746]
[1735115667878,1.34489856,3503.9,3503.3,0.55]
[1735115668060,2.85414,3503.7,3503.3,0.55]
[1735115670516,2.85436,3503.5,3503.0,3.0]
[1735115671779,2.85406,3503.8,3503.1,0.55]
[1735115673479,2.85406,3503.8,3503.0,0.55]
[1735115673995,2.85432,3503.5,3503.0,0.55]
[1735115674828,2.85404,3503.8,3503.0,0.55]
[1735115675135,0.7919,3503.0,3502.6,1.1854293]
[1735115675430,3.6466,3503.0,3502.6,1.1854293]
[1735115675583,0.7919,3503.0,3502.6,1.1854293]
[1735115675784,0.7919,3503.0,3502.5,1.1854293]
[1735115676025,2.85456,3503.2,3502.5,1.1854293]
[1735115676324,2.85456,3503.2,3502.6,0.55]
[1735115676724,0.7919,3503.3,3502.6,0.55]
[1735115676896,0.7919,3503.3,3502.7,0.7892]
[1735115677110,0.7919,3503.3,3502.8,0.55]
[1735115677694,2.85436,3503.5,3502.8,0.55]
[1735115677912,0.7919,3503.6,3502.8,0.55]
[1735115678240,0.7919,3503.4,3502.5,1.1854293]
[1735115678539,3.64692,3502.6,3502.5,1.1854293]
[1735115680104,2.85485,3502.9,3502.1,4.3392]
[1735115680285,2.85485,3502.9,3502.1,1.3392]
[1735115680696,2.8549,3502.8,3502.1,1.3392]
[1735115680913,2.8549,3502.8,3502.3,3.55]
[1735115681636,2.8549,3502.8,3502.3,0.55]
[1735115682136,2.8549,3502.8,3502.4,35.0]
[1735115683388,2.8549,3502.8,3502.2,0.55]
[1735115683788,2.8549,3502.8,3502.3,35.0]
[1735115684639,2.8547,3503.0,3502.3,35.0]
[1735115686343,0.7919,3503.1,3502.3,35.0]
[1735115686633,2.85485,3502.9,3502.3,35.0]
[1735115687320,2.85485,3502.9,3502.2,0.55]
[1735115687635,0.364675,3502.9,3502.1,0.7892]
[1735115687823,2.85501,3502.7,3502.1,0.7892]
[1735115688024,2.85511,3502.5,3502.0,11.44998553]
[1735115688231,0.8102,3502.4,3501.9,4.1854293]
[1735115688742,2.85495,3502.7,3502.0,0.55]
[1735115689346,2.85495,3502.7,3502.0,6.00584541]
[1735115689491,2.8548,3502.9,3502.1,0.7881]
[1735115689698,2.8548,3502.9,3502.2,0.55]
[1735115689925,2.8548,3502.9,3502.3,0.7881]
[1735115690249,2.8548,3502.9,3502.4,35.0]
[1735115691340,2.8548,3502.9,3502.3,0.7881]
[1735115691750,2.8548,3502.9,3502.3,35.7881]
[1735115692211,2.8548,3502.9,3502.3,0.7881]
[1735115692405,2.85489,3502.8,3502.3,0.7881]
[1735115692793,2.85489,3502.8,3502.3,3.7881]
[1735115693144,2.85494,3502.7,3502.2,0.55]
[1735115693442,0.8102,3503.1,3502.1,3.0]
[1735115693610,2.85503,3502.6,3502.1,3.0]
[1735115693993,2.85488,3502.8,3502.1,3.0]
[1735115694208,2.85488,3502.8,3502.0,0.7881]
[1735115694624,2.85488,3502.8,3502.1,0.55]
[1735115695022,0.8102,3502.9,3502.1,0.55]
[1735115695228,2.85504,3502.6,3502.1,0.55]
[1735115695425,2.85504,3502.6,3502.0,0.7881]
[1735115696643,0.8102,3503.1,3502.1,0.55]
[1735115696829,2.8547,3503.0,3502.1,0.55]
[1735115697145,2.8547,3503.0,3502.3,3.55]
[1735115697511,2.8547,3503.0,3502.3,0.55]
[1735115698003,0.8102,3503.1,3502.5,0.55]